fUSD/lending_fUSD_20250221
["ID","MTS","AMOUNT","RATE_DAILY","PERIOD"]
[353950411,1740165054129,-500.0,0.00011041,2]
[353950412,1740165054138,-520.34,0.00011041,2]
[353950413,1740165054148,-685.93,0.00011041,2]
[353950414,1740165054157,-2768.26,0.00011041,2]
[353950415,1740165054166,-500.0,0.00011041,2]
[353950416,1740165054175,-500.0,0.00011041,2]
[353950417,1740165054185,-1604.23,0.00011041,2]
[353950418,1740165054195,-500.0,0.00011041,2]
[353950419,1740165054204,-2184.09,0.00011041,2]
[353950420,1740165054214,-500.0,0.00011041,2]
[353950421,1740165054223,-500.0,0.00011041,2]
[353950422,1740165054232,-500.0,0.00011041,2]
[353950423,1740165054242,-500.0,0.00011041,2]
[353950424,1740165054251,-500.0,0.00011041,2]
[353950425,1740165054261,-500.0,0.00011041,2]
[353950426,1740165054270,-1998.1,0.00011041,2]
[353950427,1740165054280,-646.23,0.00011041,2]
[353950428,1740165054290,-1012.21,0.00011041,2]
[353950429,1740165054299,-500.0,0.00011041,2]
[353950430,1740165054309,-500.0,0.00011041,2]
[353950431,1740165054319,-554.65,0.00011041,2]
[353950432,1740165054328,-2916.09,0.00011041,2]
[353950433,1740165054338,-500.0,0.00011041,2]
[353950434,1740165054349,-500.0,0.00011041,2]
[353950435,1740165054359,-500.0,0.00011041,2]
[353950436,1740165054370,-500.0,0.00011041,2]
[353950437,1740165054379,-500.0,0.00011041,2]
[353950438,1740165054389,-862.38,0.00011041,2]
[353950439,1740165054399,-500.0,0.00011041,2]
[353950440,1740165054408,-500.0,0.00011041,2]
[353950441,1740165054418,-500.0,0.00011041,2]
[353950442,1740165054428,-500.0,0.00011041,2]
[353950443,1740165054437,-500.0,0.00011041,2]
[353950444,1740165054447,-829.35,0.00011041,2]
[353950445,1740165054456,-565.07,0.00011041,2]
[353950446,1740165054465,-500.0,0.00011041,2]
[353950447,1740165054475,-599.53,0.00011041,2]
[353950448,1740165054484,-500.0,0.00011041,2]
[353950449,1740165054494,-1959.3,0.00011041,2]
[353950450,1740165054503,-1594.81,0.00011041,2]
[353950451,1740165054513,-500.0,0.00011041,2]
[353950452,1740165054522,-500.0,0.00011041,2]
[353950453,1740165054531,-500.0,0.00011041,2]
[353950454,1740165054541,-1779.68,0.00011041,2]
[353950455,1740165054551,-500.0,0.00011041,2]
[353950456,1740165054560,-500.0,0.00011041,2]
[353950457,1740165054570,-957.13,0.00011041,2]
[353950458,1740165054579,-1091.45,0.00011041,2]
[353950459,1740165054588,-575.2004674,0.00011041,2]
[353950460,1740165054599,-1026.09,0.00011041,2]
[353950461,1740165054609,-1402.52,0.00011041,2]
[353950462,1740165054619,-829.08,0.00011041,2]
[353950463,1740165054628,-500.0,0.00011041,2]
[353950464,1740165054638,-500.0,0.00011041,2]
[353950465,1740165054648,-875.76,0.00011041,2]
[353950466,1740165054657,-500.0,0.00011041,2]
[353950467,1740165054667,-829.3,0.00011041,2]
[353950468,1740165054676,-1629.13,0.00011041,2]
[353950469,1740165054686,-500.0,0.00011041,2]
[353950470,1740165054695,-1178.28,0.00011041,2]
[353950471,1740165054705,-781.38,0.00011041,2]
[353950472,1740165054714,-3393.01,0.00011041,2]
[353950473,1740165054723,-500.0,0.00011041,2]
[353950474,1740165054732,-500.0,0.00011041,2]
[353950475,1740165054741,-500.0,0.00011041,2]
[353950476,1740165054750,-500.0,0.00011041,2]
[353950477,1740165054759,-500.0,0.00011041,2]
[353950478,1740165054768,-500.0,0.00011041,2]
[353950479,1740165054777,-5355.55,0.00011041,2]
[353950480,1740165054787,-1183.94,0.00011041,2]
[353950481,1740165054796,-579.29,0.00011041,2]
[353950482,1740165054806,-736.92,0.00011041,2]
[353950483,1740165054816,-2607.94,0.00011041,2]
[353950484,1740165054826,-500.0,0.00011041,2]
[353950485,1740165054836,-709.36,0.00011041,2]
[353950486,1740165054846,-500.0,0.00011041,2]
[353950487,1740165054855,-610.09,0.00011041,2]
[353950488,1740165054864,-500.0,0.00011041,2]
[353950489,1740165054874,-500.0,0.00011041,2]
[353950490,1740165054883,-500.0,0.00011041,2]
[353950491,1740165054892,-1636.76,0.00011041,2]
[353950492,1740165054902,-500.0,0.00011041,2]
[353950493,1740165054912,-777.51,0.00011041,2]
[353950494,1740165054924,-500.0,0.00011041,2]
[353950495,1740165054934,-2680.1,0.00011041,2]
[353950496,1740165054944,-500.0,0.00011041,2]
[353950497,1740165054953,-374.33389084,0.00011041,2]
[353950498,1740165054962,-500.0,0.00011041,2]
[353950499,1740165054972,-1426.91,0.00011041,2]
[353950500,1740165054981,-926.57,0.00011041,2]
[353950501,1740165055138,-500.0,0.00011041,2]
[353950502,1740165055149,-500.0,0.00011041,2]
[353950503,1740165055158,-1759.53,0.00011041,2]
[353950504,1740165055167,-500.0,0.00011041,2]
[353950505,1740165055176,-500.0,0.00011041,2]
[353950506,1740165055185,-500.0,0.00011041,2]
[353950507,1740165055195,-3088.04,0.00011041,2]
[353950508,1740165055204,-500.0,0.00011041,2]
[353950509,1740165055213,-500.0,0.00011041,2]
[353950510,1740165055223,-500.0,0.00011041,2]
[353950511,1740165055232,-2102.27,0.00011041,2]
[353950512,1740165055241,-2473.99,0.00011041,2]
[353950513,1740165055251,-500.0,0.00011041,2]
[353950514,1740165055260,-1835.58,0.00011041,2]
[353950515,1740165055269,-6791.49,0.00011041,2]
[353950516,1740165055278,-3023.06,0.00011041,2]
[353950517,1740165055288,-854.81,0.00011041,2]
[353950518,1740165055297,-2846.46,0.00011041,2]
[353950519,1740165055307,-1961.8,0.00011041,2]
[353950520,1740165055316,-612.57466594,0.00011041,2]
[353950521,1740165055325,-1161.49,0.00011041,2]
[353950522,1740165055335,-500.0,0.00011041,2]
[353950523,1740165055344,-996.96,0.00011041,2]
[353950524,1740165055355,-726.25,0.00011041,2]
[353950525,1740165055365,-741.19,0.00011041,2]
[353950526,1740165055375,-1065.12,0.00011041,2]
[353950527,1740165055384,-500.0,0.00011041,2]
[353950528,1740165055394,-3844.61,0.00011041,2]
[353950529,1740165055403,-500.0,0.00011041,2]
[353950530,1740165055412,-1447.68,0.00011041,2]
[353950531,1740165055422,-1663.66,0.00011041,2]
[353950532,1740165055431,-500.0,0.00011041,2]
[353950533,1740165055442,-898.1,0.00011041,2]
[353950534,1740165055452,-2061.17,0.00011041,2]
[353950535,1740165055462,-500.0,0.00011041,2]
[353950536,1740165055472,-1470.97,0.00011041,2]
[353950537,1740165055481,-500.0,0.00011041,2]
[353950538,1740165055490,-1165.22,0.00011041,2]
[353950539,1740165055499,-3837.3,0.00011041,2]
[353950540,1740165055508,-787.61,0.00011041,2]
[353950541,1740165055517,-1035.45,0.00011041,2]
[353950542,1740165055526,-200.0,0.00011041,2]
[353950543,1740165055535,-5838.06973,0.00011041,2]
[353950544,1740165055545,-2088.16,0.00011041,2]
[353950545,1740165055555,-500.0,0.00011041,2]
[353950546,1740165055565,-995.71,0.00011041,2]
[353950547,1740165055575,-1813.73,0.00011041,2]
[353950548,1740165055584,-500.0,0.00011041,2]
[353950549,1740165055594,-541.29,0.00011041,2]
[353950550,1740165055606,-500.0,0.00011041,2]
[353950551,1740165055616,-5277.6,0.00011041,2]
[353950552,1740165055625,-500.0,0.00011041,2]
[353950553,1740165055634,-2359.06,0.00011041,2]
[353950554,1740165055645,-3353.09,0.00011041,2]
[353950555,1740165055655,-1820.83,0.00011041,2]
[353950556,1740165055665,-1070.09,0.00011041,2]
[353950557,1740165055674,-500.0,0.00011041,2]
[353950558,1740165055684,-500.0,0.00011041,2]
[353950559,1740165055694,-3197.57,0.00011041,2]
[353950560,1740165055703,-500.0,0.00011041,2]
[353950561,1740165055713,-2115.76,0.00011041,2]
[353950562,1740165055723,-1508.14,0.00011041,2]
[353950563,1740165055732,-4937.96,0.00011041,2]
[353950564,1740165055741,-500.0,0.00011041,2]
[353950565,1740165055750,-500.0,0.00011041,2]
[353950566,1740165055759,-500.0,0.00011041,2]
[353950567,1740165055769,-820.83,0.00011041,2]
[353950568,1740165055779,-1969.18,0.00011041,2]
[353950569,1740165055788,-500.0,0.00011041,2]
[353950570,1740165055798,-500.0,0.00011041,2]
[353950571,1740165055807,-553.59210346,0.00011041,2]
[353950572,1740165055817,-500.0,0.00011041,2]
[353950573,1740165055826,-1293.41,0.00011041,2]
[353950574,1740165055836,-4269.75,0.00011041,2]
[353950575,1740165055845,-816.69,0.00011041,2]
[353950576,1740165055856,-1200.1,0.00011041,2]
[353950577,1740165055866,-2982.14,0.00011041,2]
[353950578,1740165055875,-500.0,0.00011041,2]
[353950579,1740165055884,-500.0,0.00011041,2]
[353950580,1740165055893,-3642.37,0.00011041,2]
[353950581,1740165055902,-500.0,0.00011041,2]
[353950582,1740165055912,-150.0,0.00011096,2]
[353950583,1740165055924,-150.0,0.00011096,2]
[353950584,1740165055935,-930.44464939,0.00011099,2]
[353950585,1740165055945,-930.44464938,0.00011099,2]
[353950586,1740165055954,-930.44464938,0.00011099,2]
[353950587,1740165055963,-250.0,0.000111,2]
[353950588,1740165055975,-250.0,0.000111,2]
[353950589,1740165055984,-250.0,0.000111,2]
[353950590,1740165055994,-250.0,0.000111,2]
[353950591,1740165056003,-250.0,0.000111,2]
[353950592,1740165056012,-250.0,0.000111,2]
[353950593,1740165056022,-250.0,0.000111,2]
[353950594,1740165056031,-250.0,0.000111,2]
[353950595,1740165056040,-250.0,0.000111,2]
[353950596,1740165056050,-250.0,0.000111,2]
[353950597,1740165056060,-250.0,0.000111,2]
[353950598,1740165056070,-250.0,0.000111,2]
[353950599,1740165056079,-250.0,0.000111,2]
[353950600,1740165056089,-250.9,0.000111,2]
[353950601,1740165056098,-930.44464938,0.00011105,2]
[353950602,1740165056107,-200.0,0.00011116,2]
[353950603,1740165056116,-500.0,0.0001112,2]
[353950604,1740165056125,-500.0,0.00011121,2]
[353950605,1740165056135,-500.0,0.00011121,2]
[353950606,1740165056145,-500.0,0.00011121,2]
[353950607,1740165056155,-500.0,0.00011121,2]
[353950608,1740165056165,-530.78,0.00011121,2]
[353950609,1740165056175,-957.52,0.00011121,2]
[353950610,1740165056184,-1681.69,0.00011121,2]
[353950611,1740165056200,-1370.31,0.00011121,2]
[353950612,1740165056219,-847.07,0.00011121,2]
[353950613,1740165056234,-939.95,0.00011121,2]
[353950614,1740165056253,-1190.44,0.00011121,2]
[353950615,1740165056273,-644.26,0.00011121,2]
[353950616,1740165056289,-852.88,0.00011121,2]
[353950617,1740165056306,-506.57070583,0.00011121,2]
[353950618,1740165056324,-1471.32,0.00011121,2]
[353950619,1740165056343,-678.67,0.00011121,2]
[353950620,1740165056366,-2030.12,0.00011121,2]
[353950621,1740165056385,-626.47,0.00011121,2]
[353950622,1740165056401,-1690.47,0.00011121,2]
[353950623,1740165056420,-865.6,0.00011121,2]
[353950624,1740165056436,-826.13,0.00011121,2]
[353950625,1740165056450,-683.0,0.00011121,2]
[353950626,1740165056469,-2042.4,0.00011121,2]
[353950627,1740165056481,-1525.59,0.00011121,2]
[353950628,1740165056495,-2138.39,0.00011121,2]
[353950629,1740165056511,-982.38,0.00011121,2]
[353950630,1740165056524,-2241.41,0.00011121,2]
[353950631,1740165056539,-730.28,0.00011121,2]
[353950632,1740165056553,-1227.29,0.00011121,2]
[353950633,1740165056568,-500.0,0.00011121,2]
[353950634,1740165056583,-500.0,0.00011121,2]
[353950635,1740165056599,-500.0,0.00011121,2]
[353950636,1740165056613,-500.0,0.00011121,2]
[353950637,1740165056626,-610.11,0.00011121,2]
[353950638,1740165056640,-901.21,0.00011121,2]
[353950639,1740165056654,-1222.37,0.00011121,2]
[353950640,1740165056669,-500.0,0.00011121,2]
[353950641,1740165056682,-500.0,0.00011122,2]
[353950642,1740165056700,-500.0,0.00011122,2]
[353950643,1740165056714,-731.51,0.00011123,2]
[353950644,1740165056727,-500.0,0.00011123,2]
[353950645,1740165056742,-500.0,0.00011123,2]
[353950646,1740165056755,-500.0,0.00011123,2]
[353950647,1740165056768,-500.0,0.00011123,2]
[353950648,1740165056782,-500.0,0.00011123,2]
[353950649,1740165056796,-500.0,0.00011123,2]
[353950650,1740165056809,-573.35,0.00011123,2]
[353950651,1740165056823,-500.0,0.00011123,2]
[353950652,1740165056838,-500.0,0.00011123,2]
[353950653,1740165056853,-500.0,0.00011123,2]
[353950654,1740165056866,-348.08091895,0.00011123,2]
[353950655,1740165056880,-500.0,0.00011123,2]
[353950656,1740165056893,-500.0,0.00011123,2]
[353950657,1740165056907,-500.0,0.00011123,2]
[353950658,1740165056922,-500.0,0.00011123,2]
[353950659,1740165056939,-500.0,0.00011123,2]
[353950660,1740165056953,-516.15371478,0.00011123,2]
[353950661,1740165056966,-500.0,0.00011123,2]
[353950662,1740165056980,-500.0,0.00011123,2]
[353950663,1740165056994,-500.0,0.00011123,2]
[353950664,1740165057008,-500.0,0.00011123,2]
[353950665,1740165057022,-797.23,0.00011123,2]
[353950666,1740165057036,-500.0,0.00011123,2]
[353950667,1740165057051,-677.02,0.00011123,2]
[353950668,1740165057066,-818.62,0.00011123,2]
[353950669,1740165057079,-840.96,0.00011123,2]
[353950670,1740165057093,-500.0,0.00011123,2]
[353950671,1740165057107,-500.0,0.00011123,2]
[353950672,1740165057120,-500.0,0.00011123,2]
[353950673,1740165057135,-500.0,0.00011123,2]
[353950674,1740165057149,-500.0,0.00011123,2]
[353950675,1740165057163,-500.0,0.00011123,2]
[353950676,1740165057177,-575.33,0.00011123,2]
[353950677,1740165057190,-500.0,0.00011123,2]
[353950678,1740165057204,-7203.316952,0.00011123,2]
[353950679,1740165057218,-500.0,0.00011123,2]
[353950680,1740165057232,-500.0,0.00011123,2]
[353950681,1740165057245,-500.0,0.00011123,2]
[353950682,1740165057259,-500.0,0.00011123,2]
[353950683,1740165057272,-352.9234566,0.00011123,2]
[353950684,1740165057286,-500.0,0.00011123,2]
[353950685,1740165057299,-1742.76,0.00011123,2]
[353950686,1740165057313,-500.0,0.00011123,2]
[353950687,1740165057326,-500.0,0.00011123,2]
[353950688,1740165057340,-500.0,0.00011123,2]
[353950689,1740165057356,-500.0,0.00011123,2]
[353950690,1740165057370,-500.0,0.00011123,2]
[353950691,1740165057385,-565.11,0.00011123,2]
[353950692,1740165057399,-1160.38,0.00011123,2]
[353950693,1740165057413,-500.0,0.00011123,2]
[353950694,1740165057428,-680.99,0.00011123,2]
[353950695,1740165057441,-500.0,0.00011123,2]
[353950696,1740165057455,-626.89,0.00011123,2]
[353950697,1740165057469,-500.0,0.00011123,2]
[353950698,1740165057484,-1029.96,0.00011123,2]
[353950699,1740165057497,-500.0,0.00011123,2]
[353950700,1740165057510,-500.0,0.00011123,2]
[353950701,1740165057525,-500.0,0.00011123,2]
[353950702,1740165057540,-858.03,0.00011123,2]
[353950703,1740165057552,-254.54,0.00011123,2]
[353950704,1740165057561,-502.89,0.00011123,2]
[353950705,1740165057570,-589.86,0.00011123,2]
[353950706,1740165057579,-500.0,0.00011123,2]
[353950707,1740165057589,-500.0,0.00011123,2]
[353950708,1740165057599,-1194.6,0.00011123,2]
[353950709,1740165057608,-500.0,0.00011123,2]
[353950710,1740165057618,-500.0,0.00011123,2]
[353950711,1740165057627,-500.0,0.00011123,2]
[353950712,1740165057636,-500.0,0.00011123,2]
[353950713,1740165057645,-500.0,0.00011123,2]
[353950714,1740165057654,-1339.27,0.00011123,2]
[353950715,1740165057664,-697.33,0.00011123,2]
[353950716,1740165057673,-500.0,0.00011123,2]
[353950717,1740165057682,-500.0,0.00011123,2]
[353950718,1740165057691,-500.0,0.00011123,2]
[353950719,1740165057977,-500.0,0.00011123,2]
[353950720,1740165058003,-500.0,0.00011123,2]
[353950721,1740165058021,-589.93,0.00011123,2]
[353950722,1740165058031,-500.0,0.00011123,2]
[353950723,1740165058040,-500.0,0.00011123,2]
[353950724,1740165058050,-500.0,0.00011123,2]
[353950725,1740165058059,-500.0,0.00011123,2]
[353950726,1740165058068,-500.0,0.00011123,2]
[353950727,1740165058077,-283.24785932,0.00011123,2]
[353950728,1740165058086,-500.0,0.00011123,2]
[353950729,1740165058094,-500.0,0.00011123,2]
[353950730,1740165058104,-1218.86,0.00011123,2]
[353950731,1740165058113,-500.0,0.00011123,2]
[353950732,1740165058121,-872.66,0.00011123,2]
[353950733,1740165058130,-500.0,0.00011123,2]
[353950734,1740165058139,-847.49,0.00011123,2]
[353950735,1740165058148,-500.0,0.00011123,2]
[353950736,1740165058158,-500.0,0.00011123,2]
[353950737,1740165058167,-500.0,0.00011123,2]
[353950738,1740165058176,-1152.78,0.00011123,2]
[353950739,1740165058185,-500.0,0.00011123,2]
[353950740,1740165058195,-784.84,0.00011123,2]
[353950741,1740165058204,-651.21,0.00011123,2]
[353950742,1740165058213,-811.75,0.00011123,2]
[353950743,1740165058222,-500.0,0.00011123,2]
[353950744,1740165058231,-500.0,0.00011123,2]
[353950745,1740165058240,-1602.77,0.00011123,2]
[353950746,1740165058249,-500.0,0.00011123,2]
[353950747,1740165058258,-928.49,0.00011123,2]
[353950748,1740165058267,-1453.54,0.00011123,2]
[353950749,1740165058276,-500.0,0.00011123,2]
[353950750,1740165058285,-500.0,0.00011123,2]
[353950751,1740165058294,-1052.55,0.00011123,2]
[353950752,1740165058303,-654.12,0.00011123,2]
[353950753,1740165058311,-500.0,0.00011123,2]
[353950754,1740165058320,-600.59,0.00011123,2]
[353950755,1740165058330,-500.0,0.00011123,2]
[353950756,1740165058339,-500.0,0.00011123,2]
[353950757,1740165058349,-600.19,0.00011123,2]
[353950758,1740165058359,-500.0,0.00011123,2]
[353950759,1740165058368,-1557.94,0.00011123,2]
[353950760,1740165058377,-723.16,0.00011123,2]
[353950761,1740165058386,-500.0,0.00011123,2]
[353950762,1740165058396,-500.0,0.00011123,2]
[353950763,1740165058405,-973.86,0.00011123,2]
[353950764,1740165058414,-627.0,0.00011123,2]
[353950765,1740165058423,-597.11,0.00011123,2]
[353950766,1740165058432,-1361.06,0.00011123,2]
[353950767,1740165058441,-500.0,0.00011123,2]
[353950768,1740165058451,-500.0,0.00011123,2]
[353950769,1740165058460,-500.0,0.00011123,2]
[353950770,1740165058469,-545.63,0.00011123,2]
[353950771,1740165058478,-684.05,0.00011123,2]
[353950772,1740165058487,-508.67,0.00011123,2]
[353950773,1740165058496,-500.0,0.00011123,2]
[353950774,1740165058505,-865.33,0.00011123,2]
[353950775,1740165058514,-565.87,0.00011123,2]
[353950776,1740165058523,-612.75,0.00011123,2]
[353950777,1740165058532,-523.64,0.00011123,2]
[353950778,1740165058542,-645.56,0.00011123,2]
[353950779,1740165058551,-961.54,0.00011123,2]
[353950780,1740165058561,-842.47,0.00011123,2]
[353950781,1740165058571,-500.0,0.00011123,2]
[353950782,1740165058580,-500.0,0.00011123,2]
[353950783,1740165058589,-895.28,0.00011123,2]
[353950784,1740165058599,-500.0,0.00011123,2]
[353950785,1740165058608,-500.0,0.00011123,2]
[353950786,1740165058617,-793.32,0.00011123,2]
[353950787,1740165058626,-500.0,0.00011123,2]
[353950788,1740165058635,-299.23,0.00011123,2]
[353950789,1740165058644,-500.0,0.00011123,2]
[353950790,1740165058653,-514.87,0.00011123,2]
[353950791,1740165058663,-691.0,0.00011123,2]
[353950792,1740165058672,-500.0,0.00011123,2]
[353950793,1740165058681,-1112.36,0.00011123,2]
[353950794,1740165058690,-500.0,0.00011123,2]
[353950795,1740165058700,-840.51,0.00011123,2]
[353950796,1740165058709,-500.0,0.00011123,2]
[353950797,1740165058718,-500.0,0.00011123,2]
[353950798,1740165058727,-500.0,0.00011123,2]
[353950799,1740165058736,-1180.13,0.00011123,2]
[353950800,1740165058745,-844.88,0.00011123,2]
[353950801,1740165058755,-806.72,0.00011123,2]
[353950802,1740165058764,-500.0,0.00011123,2]
[353950803,1740165058774,-537.23,0.00011123,2]
[353950804,1740165058783,-500.0,0.00011123,2]
[353950805,1740165058792,-892.59,0.00011123,2]
[353950806,1740165058801,-500.0,0.00011123,2]
[353950807,1740165058810,-806.21,0.00011123,2]
[353950808,1740165058819,-572.73,0.00011123,2]
[353950809,1740165058828,-500.0,0.00011123,2]
[353950810,1740165058837,-1563.66,0.00011123,2]
[353950811,1740165058847,-821.26,0.00011123,2]
[353950812,1740165058857,-543.61120191,0.00011123,2]
[353950813,1740165058866,-500.0,0.00011123,2]
[353950814,1740165058876,-500.0,0.00011123,2]
[353950815,1740165058885,-500.0,0.00011123,2]
[353950816,1740165058894,-940.42,0.00011123,2]
[353950817,1740165058903,-226.97877613,0.00011123,2]
[353950818,1740165058913,-611.12,0.00011123,2]
[353950819,1740165058922,-500.0,0.00011123,2]
[353950820,1740165058938,-500.0,0.00011123,2]
[353950821,1740165058947,-500.0,0.00011123,2]
[353950822,1740165058957,-500.0,0.00011123,2]
[353950823,1740165058967,-1780.54,0.00011123,2]
[353950824,1740165058976,-500.0,0.00011123,2]
[353950825,1740165058985,-500.0,0.00011123,2]
[353950826,1740165058995,-500.0,0.00011123,2]
[353950827,1740165059004,-500.0,0.00011123,2]
[353950828,1740165059013,-991.67,0.00011123,2]
[353950829,1740165059022,-500.0,0.00011123,2]
[353950830,1740165059031,-500.0,0.00011123,2]
[353950831,1740165059040,-500.0,0.00011123,2]
[353950832,1740165059049,-528.9,0.00011123,2]
[353950833,1740165059058,-1033.27,0.00011123,2]
[353950834,1740165059068,-1402.78,0.00011123,2]
[353950835,1740165059077,-500.0,0.00011123,2]
[353950836,1740165059086,-500.0,0.00011123,2]
[353950837,1740165059095,-500.0,0.00011123,2]
[353950838,1740165059107,-500.0,0.00011123,2]
[353950839,1740165059116,-600.36,0.00011123,2]
[353950840,1740165059125,-500.0,0.00011123,2]
[353950841,1740165059135,-882.31,0.00011123,2]
[353950842,1740165059144,-500.0,0.00011123,2]
[353950843,1740165059154,-970.65,0.00011123,2]
[353950844,1740165059163,-500.0,0.00011123,2]
[353950845,1740165059173,-500.0,0.00011123,2]
[353950846,1740165059182,-500.0,0.00011123,2]
[353950847,1740165059191,-500.0,0.00011123,2]
[353950848,1740165059200,-500.0,0.00011123,2]
[353950849,1740165059210,-500.0,0.00011123,2]
[353950850,1740165059219,-550.33,0.00011123,2]
[353950851,1740165059228,-624.71,0.00011123,2]
[353950852,1740165059237,-500.0,0.00011123,2]
[353950853,1740165059247,-500.0,0.00011123,2]
[353950854,1740165059256,-500.0,0.00011123,2]
[353950855,1740165059265,-500.0,0.00011123,2]
[353950856,1740165059275,-500.0,0.00011123,2]
[353950857,1740165059285,-1496.36,0.00011123,2]
[353950858,1740165059294,-500.0,0.00011123,2]
[353950859,1740165059303,-500.0,0.00011123,2]
[353950860,1740165059312,-500.0,0.00011123,2]
[353950861,1740165059321,-500.0,0.00011123,2]
[353950862,1740165059331,-500.0,0.00011123,2]
[353950863,1740165059340,-552.04,0.00011123,2]
[353950864,1740165059350,-500.0,0.00011123,2]
[353950865,1740165059361,-795.52,0.00011123,2]
[353950866,1740165059370,-500.0,0.00011123,2]
[353950867,1740165059379,-500.0,0.00011123,2]
[353950868,1740165059389,-529.57,0.00011123,2]
[353950869,1740165059398,-512.15,0.00011123,2]
[353950870,1740165059407,-500.0,0.00011123,2]
[353950871,1740165059417,-360.17796677,0.00011123,2]
[353950872,1740165059426,-500.0,0.00011123,2]
[353950873,1740165059435,-519.8,0.00011123,2]
[353950874,1740165059444,-500.0,0.00011123,2]
[353950875,1740165059453,-500.0,0.00011123,2]
[353950876,1740165059463,-500.0,0.00011123,2]
[353950877,1740165059472,-500.0,0.00011123,2]
[353950878,1740165059482,-500.0,0.00011123,2]
[353950879,1740165059491,-1185.38,0.00011123,2]
[353950880,1740165059501,-500.0,0.00011123,2]
[353950881,1740165059511,-500.0,0.00011123,2]
[353950882,1740165059520,-672.16,0.00011123,2]
[353950883,1740165059530,-535.75,0.00011123,2]
[353950884,1740165059539,-500.0,0.00011123,2]
[353950885,1740165059548,-909.05,0.00011123,2]
[353950886,1740165059558,-500.0,0.00011123,2]
[353950887,1740165059567,-500.0,0.00011123,2]
[353950888,1740165059577,-500.0,0.00011123,2]
[353950889,1740165059586,-500.0,0.00011123,2]
[353950890,1740165059595,-1301.85,0.00011123,2]
[353950891,1740165059606,-500.0,0.00011123,2]
[353950892,1740165059616,-500.0,0.00011123,2]
[353950893,1740165059625,-762.98,0.00011123,2]
[353950894,1740165059635,-500.0,0.00011123,2]
[353950895,1740165059644,-500.0,0.00011123,2]
[353950896,1740165059653,-1086.19,0.00011123,2]
[353950897,1740165059662,-628.04,0.00011123,2]
[353950898,1740165059672,-500.0,0.00011123,2]
[353950899,1740165059682,-500.0,0.00011123,2]
[353950900,1740165059691,-500.0,0.00011123,2]
[353950901,1740165059700,-1272.05,0.00011123,2]
[353950902,1740165059709,-2241.53,0.00011123,2]
[353950903,1740165059719,-500.0,0.00011123,2]
[353950904,1740165059729,-500.0,0.00011123,2]
[353950905,1740165059738,-500.0,0.00011123,2]
[353950906,1740165059747,-670.58,0.00011123,2]
[353950907,1740165059756,-500.0,0.00011123,2]
[353950908,1740165059765,-500.0,0.00011123,2]
[353950909,1740165059775,-500.0,0.00011123,2]
[353950910,1740165059784,-500.0,0.00011123,2]